Workbook

Sheet Inicio
B4: CUADRO INTEGRADO DE INDICADORES: FINANCIERO, AMBIENTAL, SOCIAL Y DE GOBIERNO CORPORATIVO
C6: Objetivos estratégicos genéricos | D6: IS-KPIs
C7: Financieros | F7: Indicadores claves de rendimiento (KPIs)
C8: Eficiencia económica | D8: KPI_F1 - KPI_F15
C9: Ambientales | F9: Análisis
C10: Eficiencia energética y emisiones | D10: KPI_E1 - KPI_E3
C11: Eficiencia gestión de residuos | D11: KPI_E4 - KPI_E6 | G11: Scoreboard: análisis de informe integrado
C12: Sociales
C13: Capital Humano | D13: KPI_S1 - KPI_S10
C14: Capital Social | D14: KPI_S11 - KPI_S12
C15: Gobierno Corporativo
C16: Buen gobierno corporativo | D16: KPI_CG1-KPI_CG9

Sheet KPIs
A1: Inicio | D1: Básicos | E1: Compuestos | F1: Complejos | K1: Compuestos | L1: Complejos | Q1: Compuestos | R1: Complejos | X1: Compuestos | Y1: Complejos
A4: Cuadro de KPIs
I5: 2012 | O5: 2011
H6: Valor reportado (periodo actual) | N6: Valor reportado (periodo anterior) | T6: Valor Esperado o Predicho | AA6: Grado de cumplimiento | AE6: Tasa de cambio
AA7: % | AC7: % | AE7: % | AG7: %
B8: Indicadores Financieros | H8: Flujo | J8: Fondo | N8: Flujo | P8: Fondo | T8: Flujo | V8: Fondo | AA8: Flujo | AC8: Fondo | AE8: Flujo | AG8: Fondo
H9: Devengo | I9: Caja | N9: Devengo | O9: Caja | T9: Devengo | U9: Caja | AA9: Devengo | AB9: Caja | AE9: Devengo | AF9: Caja
B10: Eficiencia económica
B11: KPI_F1 | C11: Ingresos | D11: € | F11: F1/S1 | H11: 11127944125 | L11: =H11/J37 -> 321834.8882 | N11: 10150706250 | R11: =N11/P37 -> 303640.6297 | T11: 10967987567 | Y11: =T11/V37 -> 327402.6139 | AA11: =H11/T11 -> 1.014583948 | AE11: =(H11-N11)/N11 -> 0.0962728948
B12: KPI_F2 | C12: Gastos de proveedores | D12: € | E12: F2/F1 | H12: 1185179375 | K12: =H12/H11 -> 0.1065047921 | N12: 1060088125 | Q12: =N12/N11 -> 0.1044349131 | T12: 1202948756 | X12: =T12/T11 -> 0.1096781655 | AA12: 0.9852284805 | AE12: 0.118000803
B13: KPI_F3 | C13: Valor Añadido | D13: € | E13: F3/F1 | H13: =H11-H12 -> 9942764750 | K13: =H13/H11 -> 0.8934952079 | N13: =N11-N12 -> 9090618125 | Q13: =N13/N11 -> 0.8955650869 | T13: =T11-T12 -> 9765038811 | X13: =T13/T11 -> 0.8903218345 | AA13: 1.018200229 | AE13: 0.09373912899
B14: KPI_F4 | C14: Remuneración a los empleados | D14: € | E14: F4/F1 | F14: F4/S1 | H14: 1659676875 | K14: =H14/H11 -> 0.1491449684 | L14: =H14/J37 -> 48000.05423 | N14: 1504515625 | Q14: =N14/N11 -> 0.1482178272 | R14: =N14/P37 -> 45004.95438 | T14: 1600000000 | X14: 1.330064969 | Y14: =T14/V37 -> 47761.19403 | AA14: 1.037298047 | AE14: 0.103130368
B15: KPI_F5 | C15: Beneficio bruto | D15: € | E15: F5/F1 | H15: =H13-H14 -> 8283087875 | K15: =H15/H11 -> 0.7443502395 | N15: =N13-N14 -> 7586102500 | Q15: =N15/N11 -> 0.7473472597 | T15: =T13-T14 -> 8165038811 | X15: 0.8361501648 | AA15: 1.014457869 | AE15: 0.09187660923
B16: KPI_F6 | C16: Gastos financieros | D16: € | E16: F6/F1 | H16: 6360809688 | K16: =H16/H11 -> 0.5716069038 | N16: 5195425000 | Q16: =N16/N11 -> 0.5118289183 | T16: 6500000000 | X16: 4.0625 | AA16: 0.9785861058 | AE16: 0.2243097894
B17: KPI_F7 | C17: Retribución de los propietarios | D17: € | E17: F7/F1 | H17: 295312500 | K17: =H17/H11 -> 0.02653792081 | N17: 337187500 | Q17: =N17/N11 -> 0.03321813199 | T17: 320000000 | X17: 0.03919148548 | AA17: 0.9228515625 | AE17: -0.1241890639
B18: KPI_F8 | C18: Impuesto sobre beneficios | D18: € | E18: F8/F1 | H18: 88922812.5 | K18: =H18/H11 -> 0.00799094707 | N18: 445885937.5 | Q18: =N18/N11 -> 0.04392659255 | T18: 160000000 | X18: 0.02461538462 | AA18: 0.5557675781 | AE18: -0.8005704934
B19: KPI_F9 | C19: Contribución económica a la comunidad | D19: € | E19: F9/F1 | I19: 18396246.25 | K19: =I19/H11 -> 0.001653157676 | O19: 21583062.5 | Q19: =O19/N11 -> 0.00212626215 | U19: 25000000 | X19: 0 | AB19: =I19/U19 -> 0.73584985 | AF19: =(I19-O19)/O19 -> -0.1476535709
B20: KPI_F10 | C20: Contribución económica a la administración pública | D20: € | I20: 2503609375 | O20: 2202305762 | U20: 2300000000 | AB20: =I20/U20 -> 1.088525815 | AF20: =(I20-O20)/O20 -> 0.1368127978
B21: KPI_F11 | C21: Inversión I+D+i | D21: € | E21: F11/F1 | H21: 1350234543 | K21: =H21/H11 -> 0.1213372864 | N21: 1250120985 | Q21: =N21/N11 -> 0.1231560597 | T21: 1400000000 | X21: =T21/T11 -> 0.1276442001 | AA21: =H21/T21 -> 0.964453245 | AE21: =(H21-N21)/N21 -> 0.08008309532
B22: KPI_F12 | C22: Inversión total | D22: € | E22: F12/F1 | I22: 2069170625 | K22: =I22/H11 -> 0.185943657 | O22: 2211820938 | Q22: =O22/N11 -> 0.2178982312 | U22: 2600400000 | X22: =U22/T11 -> 0.2370899843 | AB22: =I22/U22 -> 0.7957124385 | AF22: =(I22-O22)/O22 -> -0.06449451223
B23: KPI_F13 | C23: Rentabilidad | D23: % | J23: 0.08700077879 | P23: 0.1332851914 | V23: 0.1 | AC23: =J23/V23 -> 0.8700077879 | AG23: =(J23-P23)/P23 -> -0.3472584772
B24: KPI_F14 | C24: Endeudamiento | D24: % | J24: 0.7 | P24: 0.67 | V24: 0.68 | AC24: =J24/V24 -> 1.029411765 | AG24: =(J24-P24)/P24 -> 0.0447761194
B25: KPI_F15 | C25: Autocartera | D25: % | J25: 0.007496392336 | P25: 0.01474115698 | V25: 0.015 | AC25: =J25/V25 -> 0.4997594891 | AG25: =(J25-P25)/P25 -> -0.4914651308
B26: Indicadores ambientales | H26: Flujo | J26: Fondo | N26: Flujo | P26: Fondo | T26: Flujo | V26: Fondo | AA26: Flujo | AC26: Fondo | AE26: Flujo | AG26: Fondo
B27: Eficiencia energética y emisiones
B28: KPI_E1 | C28: Consumo de energía | D28: GJ | F28: E1/F1 | H28: 2591236.4 | L28: =H28/H11 -> 0.0002328585021 | N28: 2793949.2 | R28: =N28/N11 -> 0.000275246779 | T28: 2600000 | Y28: =T28/T11 -> 0.0002370535145 | AA28: =T28/H28 -> 1.003382015 | AE28: =(H28-N28)/N28 -> -0.07255421824
B29: KPI_E2 | C29: Consumo de agua | D29: m³ | E29: E2/E1 | H29: 3870019 | K29: =H29/H28 -> 1.49350287 | N29: 4257069 | Q29: =N29/N28 -> 1.523674446 | T29: 4100000 | X29: =T29/T28 -> 1.576923077 | AA29: =T29/H29 -> 1.059426323 | AE29: =(H29-N29)/N29 -> -0.09091936259
B30: KPI_E3 | C30: Emisiones contaminantes | D30: GEI | E30: E3/E1 | F30: E3/F1 | H30: 377824 | K30: =H30/H28 -> 0.1458083871 | L30: =H30/H11 -> 3.39527226e-05 | N30: 351877 | Q30: =N30/N28 -> 0.1259425189 | R30: =N30/N11 -> 3.466527267e-05 | T30: 350000 | X30: =T30/T28 -> 0.1346153846 | Y30: =T30/T11 -> 3.191105003e-05 | AA30: =T30/H30 -> 0.9263572457 | AE30: =(H30-N30)/N30 -> 0.07373883488
B31: Eficiencia gestión de residuos
B32: KPI_E4 | C32: Generación de residuos | D32: t | E32: E4/E1 | H32: 337824 | K32: =H32/H28 -> 0.1303717407 | N32: 351877 | Q32: =N32/N28 -> 0.1259425189 | T32: 340000 | X32: =T32/T28 -> 0.1307692308 | AA32: =T32/H32 -> 1.006441224 | AE32: =(H32-N32)/N32 -> -0.0399372508
B33: KPI_E5 | C33: Residuos gestionados | D33: t | E33: E5/E1 | H33: 3348.878631 | K33: =H33/H28 -> 0.00129238638 | N33: 3728.02865 | Q33: =N33/N28 -> 0.001334322274 | T33: 3200 | X33: =T33/T28 -> 0.001230769231 | AA33: =T33/H33 -> 0.9555437364 | AE33: =(H33-N33)/N33 -> -0.1017025497
B34: KPI_E6 | C34: Residuos reutilizados | D34: t | E34: E6/E1 | H34: 4 | K34: =H34/H28 -> 1.543664638e-06 | N34: 4.2 | Q34: =N34/N28 -> 1.50324852e-06 | T34: 3 | X34: =T34/T28 -> 1.153846154e-06 | AA34: =T34/H34 -> 0.75 | AE34: =(H34-N34)/N34 -> -0.04761904762
B35: Indicadores sociales | H35: Flujo | J35: Fondo | N35: Flujo | P35: Fondo | T35: Flujo | V35: Fondo | AA35: Flujo | AC35: Fondo | AE35: Flujo | AG35: Fondo
B36: Capital Humano
B37: KPI_S1 | C37: Empleados | D37: num | J37: 34576.5625 | P37: 33430 | V37: 33500 | AC37: =J37/V37 -> 1.032136194 | AG37: =(J37-P37)/P37 -> 0.0342974125
B38: KPI_S2 | C38: Diversidad de género de los empleados | D38: num | E38: S2/S1 | J38: 17979.8125 | K38: =J38/J37 -> 0.52 | P38: 17383.6 | Q38: =P38/P37 -> 0.52 | V38: 17400 | X38: =V38/V37 -> 0.5194029851 | AC38: =J38/V38 -> 1.033322557 | AG38: =(J38-P38)/P38 -> 0.0342974125
B39: KPI_S3 | C39: Puestos de alta dirección | D39: num | E39: S3/S1 | J39: 322 | K39: =J39/J37 -> 0.009312666637 | P39: 301 | Q39: =P39/P37 -> 0.009003888723 | V39: 302 | X39: =V39/V37 -> 0.009014925373 | AC39: =J39/V39 -> 1.066225166 | AG39: =(J39-P39)/P39 -> 0.06976744186
B40: KPI_S4 | C40: Diversidad de género en la alta dirección | D40: num | E40: S4/S3 | J40: 140 | K40: =J40/J37 -> 0.004048985494 | P40: 121 | Q40: =P40/P37 -> 0.00361950344 | V40: 134 | X40: =V39/V37 -> 0.009014925373 | AC40: =J40/V40 -> 1.044776119 | AG40: =(J40-P40)/P40 -> 0.1570247934
B41: KPI_S5 | C41: Estabilidad laboral | D41: num | E41: S5/S1 | H41: 32111.25359 | K41: =H41/J37 -> 0.9287 | N41: 33430.29197 | Q41: =N41/P37 -> 1.000008734 | T41: 35200 | X41: =T41/V37 -> 1.050746269 | AA41: =H41/T41 -> 0.9122515225 | AE41: =(H41-N41)/N41 -> -0.03945638214
B42: KPI_S6 | C42: Absentismo | D42: num | H42: 1510 | N42: 1532 | T42: 1490 | AA42: =H42/T42 -> 1.013422819 | AE42: =(H42-N42)/N42 -> -0.01436031332
B43: KPI_S7 | C43: Rotación de empleados | D43: num | E43: S7/S1 | H43: 3267.485156 | K43: =H43/J37 -> 0.0945 | N43: 2527.308 | Q43: =N43/P37 -> 0.0756 | T43: 2400 | X43: =T43/V37 -> 0.07164179104 | AA43: =T43/H43 -> 0.7345098402 | AE43: =(H43-N43)/N43 -> 0.2928717656
B44: KPI_S8 | C44: Creación neta de empleo | D44: num | E44: S8/S1 | F44: S8/F1 | H44: 1146.5625 | K44: =H44/J37 -> 0.03316010665 | L44: =H44/H11 -> 1.030345306e-07 | N44: 1061.5625 | Q44: =N44/P37 -> 0.03175478612 | R44: =N44/N11 -> 1.045801616e-07 | T44: 1102 | X44: =T44/V37 -> 0.03289552239 | Y44: =T44/T11 -> 1.004742204e-07 | AA44: =T44/H44 -> 0.9611338239 | AE44: =(H44-N44)/N44 -> 0.08007065057
B45: KPI_S9 | C45: Antigüedad laboral | D45: num | J45: 7.5 | P45: 7.4 | V45: 7.8 | AC45: =J45/V45 -> 0.9615384615 | AG45: =(J45-P45)/P45 -> 0.01351351351
B46: KPI_S10 | C46: Formación de empleados | D46: num | H46: 1659675 | N46: 1437490 | T46: 1552255 | AA46: =H46/T46 -> 1.069202547 | AE46: =(H46-N46)/N46 -> 0.1545645535
B47: Capital Social
B48: KPI_S11 | C48: Regulación acerca de clientes | D48: num | J48: 0 | P48: 0 | V48: 0 | AC48: =J48/V48 ->  | AG48: =(J48-P48)/P48 -> 
B49: KPI_S12 | C49: Pago a proveedores | D49: num | H49: 38 | N49: 35 | T49: 36 | AA49: =H49/T49 -> 1.055555556 | AE49: =(H49-N49)/N49 -> 0.08571428571
B50: Indicadores de Gobierno Corporativo | H50: Flujo | J50: Fondo | N50: Flujo | P50: Fondo | T50: Flujo | V50: Fondo | AA50: Flujo | AC50: Fondo | AE50: Flujo | AG50: Fondo
B51: Buen Gobierno Corporativo
B52: KPI_CG1 | C52: Consejeros | D52: num | J52: 13 | P52: 12 | V52: 13 | AC52: =J52/V52 -> 1 | AG52: =(J52-P52)/P52 -> 0.08333333333
B53: KPI_CG2 | C53: Consejeros independientes | D53: num | E53: CG2/CG1 | J53: 10 | K53: =J53/J52 -> 0.7692307692 | P53: 9 | Q53: =P53/P52 -> 0.75 | V53: 9 | X53: =V53/V52 -> 0.6923076923 | AC53: 1.111111111 | AG53: 0.1111111111
B54: KPI_CG3 | C54: Consejeros en material de Responsabilidad Social Corporativa (RSC) | D54: num | E54: CG3/CG1 | J54: 0 | K54: =J54/J52 -> 0 | P54: 0 | Q54: =P54/P52 -> 0 | V54: 0 | X54: =V54/V52 -> 0
B55: KPI_CG4 | C55: Comisión ejecutiva | D55: num | E55: CG4/CG1 | J55: 6 | K55: =J55/J52 -> 0.4615384615 | P55: 5 | Q55: =P55/P52 -> 0.4166666667 | V55: 5 | X55: =V55/V52 -> 0.3846153846 | AC55: 1.2 | AG55: 0.2
B56: KPI_CG5 | C56: Comité de auditoría | D56: num | E56: CG5/CG1 | J56: 5 | K56: =J56/J52 -> 0.3846153846 | P56: 5 | Q56: =P56/P52 -> 0.4166666667 | V56: 5 | X56: =V56/V52 -> 0.3846153846 | AC56: 1 | AG56: 0
B57: KPI_CG6 | C57: Comisión de nombramientos | D57: num | E57: CG6/CG1 | J57: 5 | K57: =J57/J52 -> 0.3846153846 | P57: 4 | Q57: =P57/P52 -> 0.3333333333 | V57: 5 | X57: =V56/V52 -> 0.3846153846 | AC57: 1 | AG57: 0.25
B58: KPI_CG7 | C58: Reuniones del consejo | D58: num | H58: 12 | N58: 14 | T58: 14 | AA58: =H58/T58 -> 0.8571428571 | AE58: =(H58-N58)/N58 -> -0.1428571429
B59: KPI_CG8 | C59: Remuneración total del Consejo | D59: € | F59: CG8/F5 | H59: 4042812.5 | L59: =H59/H15 -> 0.0004880803586 | N59: 4059062.5 | R59: =N59/N15 -> 0.0005350656019 | T59: 4450000 | Y59: =T59/T15 -> 0.0005450065949 | AA59: =H59/T59 -> 0.908497191 | AE59: =(H59-N59)/N59 -> -0.004003387482
B60: KPI_CG9 | C60: Diversidad de género en el Consejo | D60: num | E60: CG9/CG1 | J60: 1 | K60: =J60/J52 -> 0.07692307692 | P60: 1 | Q60: =P60/P52 -> 0.08333333333 | V60: 1 | X60: =V59/V52 -> 0 | AC60: =J60/V60 -> 1 | AG60: =(J60-P60)/P60 -> 0

Sheet Scoreboard
B4: Análisis del cuadro integrado de indicadores (CII-FESG)
B6: Básicos | G6: Compuestos
C8: Indicadores financieros | H8: Compuestos financieros
C10: Indicadores ambientales | H10: Compuestos ambientales
C12: Indicadores sociales | H12: Compuestos sociales
C14: Indicadores de gobierno corporativo | H14: Compuestos de gobierno corporativo
B16: Complejos
C18: Compuestos financieros, ambientales, sociales y de gobierno

Sheet KPIs_ocultar (hidden)
A1: Objetivo Estratégico | B1: Indicadores | C1: =KPIs!O5 -> 2011 | D1: =KPIs!I5 -> 2012 | E1: Grado de cumplimiento | G1: Objetivos estratégicos | H1: % Cumplimiento
A2: =KPIs!B10 -> Eficiencia económica | B2: =KPIs!C11 -> Ingresos | C2: =KPIs!N11 -> 10150706250 | D2: =KPIs!H11 -> 11127944125 | E2: =IF(KPIs!AA11>=100%,1,0) -> 1 | G2: Eficiencia económica | H2: =COUNTIF(E2:E16,1)/COUNT(E2:E16) -> 0.4
A3: =KPIs!B10 -> Eficiencia económica | B3: =KPIs!C12 -> Gastos de proveedores | C3: =KPIs!N12 -> 1060088125 | D3: =KPIs!H12 -> 1185179375 | E3: =IF(KPIs!AA12>=100%,1,0) -> 0 | G3: Eficiencia energética y emisiones | H3: =COUNTIF(E18:E20,1)/COUNT(E18:E20) -> 0.6666666667
A4: =KPIs!B10 -> Eficiencia económica | B4: =KPIs!C13 -> Valor Añadido | C4: =KPIs!N13 -> 9090618125 | D4: =KPIs!H13 -> 9942764750 | E4: =IF(KPIs!AA13 >= 100%,1,0) -> 1 | G4: Eficiencia gestión de residuos | H4: =COUNTIF(E21:E23,1)/COUNT(E21:E23) -> 0.3333333333
A5: =KPIs!B10 -> Eficiencia económica | B5: =KPIs!C14 -> Remuneración a los empleados | C5: =KPIs!N14 -> 1504515625 | D5: =KPIs!H14 -> 1659676875 | E5: =IF(KPIs!AA14 >= 100%,1,0) -> 1 | G5: Capital Humano | H5: =COUNTIF(E25:E34,1)/COUNT(E25:E34) -> 0.6
A6: =KPIs!B10 -> Eficiencia económica | B6: =KPIs!C15 -> Beneficio bruto | C6: =KPIs!N15 -> 7586102500 | D6: =KPIs!H15 -> 8283087875 | E6: =IF(KPIs!AA15>=100%,1,0) -> 1 | G6: Capital Social | H6: =COUNTIF(E35:E36,1)/COUNT(E35:E36) -> 1
A7: =KPIs!B10 -> Eficiencia económica | B7: =KPIs!C16 -> Gastos financieros | C7: =KPIs!N16 -> 5195425000 | D7: =KPIs!H16 -> 6360809688 | E7: =IF(KPIs!AA16>=100%,1,0) -> 0 | G7: Buen Gobierno Corporativo | H7: =COUNTIF(E38:E46,1)/COUNT(E38:E46) -> 0.75
A8: =KPIs!B10 -> Eficiencia económica | B8: =KPIs!C17 -> Retribución de los propietarios | C8: =KPIs!N17 -> 337187500 | D8: =KPIs!H17 -> 295312500 | E8: =IF(KPIs!AA17 >=100%,1,0) -> 0
A9: =KPIs!B10 -> Eficiencia económica | B9: =KPIs!C18 -> Impuesto sobre beneficios | C9: =KPIs!N18 -> 445885937.5 | D9: =KPIs!H18 -> 88922812.5 | E9: =IF(KPIs!AA18 >=100%,1,0) -> 0
A10: =KPIs!B10 -> Eficiencia económica | B10: =KPIs!C19 -> Contribución económica a la comunidad | C10: =KPIs!O19 -> 21583062.5 | D10: =KPIs!I19 -> 18396246.25 | E10: =IF(KPIs!AB19 >=100%,1,0) -> 0
A11: =KPIs!B10 -> Eficiencia económica | B11: =KPIs!C20 -> Contribución económica a la administración pública | C11: =KPIs!O20 -> 2202305762 | D11: =KPIs!I20 -> 2503609375 | E11: =IF(KPIs!AB20 >=100%,1,0) -> 1 | G11: Compuesto | H11: Indicadores | I11: 2012
A12: =KPIs!B10 -> Eficiencia económica | B12: =KPIs!C21 -> Inversión I+D+i | C12: =KPIs!N21 -> 1250120985 | D12: =KPIs!H21 -> 1350234543 | E12: =IF(KPIs!AA21 >=100%,1,0) -> 0 | G12: =CONCATENATE(B3," \ ",B2) -> Gastos de proveedores \ Ingresos | H12: =B3 -> Gastos de proveedores | I12: =D3 -> 1185179375
A13: =KPIs!B10 -> Eficiencia económica | B13: =KPIs!C22 -> Inversión total | C13: =KPIs!O22 -> 2211820938 | D13: =KPIs!I22 -> 2069170625 | E13: =IF(KPIs!AB22 >=100%,1,0) -> 0 | G13: =CONCATENATE(B3," \ ",B2) -> Gastos de proveedores \ Ingresos | H13: =B2 -> Ingresos | I13: =D2 -> 11127944125
A14: =KPIs!B10 -> Eficiencia económica | B14: =KPIs!C23 -> Rentabilidad | C14: =KPIs!P23 -> 0.1332851914 | D14: =KPIs!J23 -> 0.08700077879 | E14: =IF(KPIs!AC23 >=100%,1,0) -> 0 | G14: =CONCATENATE(B4," \ ",B2) -> Valor Añadido \ Ingresos | H14: =B4 -> Valor Añadido | I14: =D4 -> 9942764750
A15: =KPIs!B10 -> Eficiencia económica | B15: =KPIs!C24 -> Endeudamiento | C15: =KPIs!P24 -> 0.67 | D15: =KPIs!J24 -> 0.7 | E15: =IF(KPIs!AC24 >=100%,1,0) -> 1 | G15: =CONCATENATE(B4," \ ",B2) -> Valor Añadido \ Ingresos | H15: =B2 -> Ingresos | I15: =D2 -> 11127944125
A16: =KPIs!B10 -> Eficiencia económica | B16: =KPIs!C25 -> Autocartera | C16: =KPIs!P25 -> 0.01474115698 | D16: =KPIs!J25 -> 0.007496392336 | E16: =IF(KPIs!AC25 >=100%,1,0) -> 0 | G16: =CONCATENATE(B5," \ ",B2) -> Remuneración a los empleados \ Ingresos | H16: =B5 -> Remuneración a los empleados | I16: =D5 -> 1659676875
B17: Indicadores | C17: =C1 -> 2011 | D17: 2012 | G17: =CONCATENATE(B5," \ ",B2) -> Remuneración a los empleados \ Ingresos | H17: =B2 -> Ingresos | I17: =D2 -> 11127944125 | K17: Indicadores | L17: Tasa de cambio
A18: =KPIs!B27 -> Eficiencia energética y emisiones | B18: =KPIs!C28 -> Consumo de energía | C18: =KPIs!N28 -> 2793949.2 | D18: =KPIs!H28 -> 2591236.4 | E18: =IF(KPIs!AA28 >=100%,1,0) -> 1 | G18: =CONCATENATE(B6," \ ",B2) -> Beneficio bruto \ Ingresos | H18: =B6 -> Beneficio bruto | I18: =D6 -> 8283087875 | K18: Consumo de energía | L18: =KPIs!AE28 -> -0.07255421824
A19: =KPIs!B27 -> Eficiencia energética y emisiones | B19: =KPIs!C29 -> Consumo de agua | C19: =KPIs!N29 -> 4257069 | D19: =KPIs!H29 -> 3870019 | E19: =IF(KPIs!AA29 >=100%,1,0) -> 1 | G19: =CONCATENATE(B6," \ ",B2) -> Beneficio bruto \ Ingresos | H19: =B2 -> Ingresos | I19: =D2 -> 11127944125 | K19: Consumo de agua | L19: =KPIs!AE29 -> -0.09091936259
A20: =KPIs!B27 -> Eficiencia energética y emisiones | B20: =KPIs!C30 -> Emisiones contaminantes | C20: =KPIs!N30 -> 351877 | D20: =KPIs!H30 -> 377824 | E20: =IF(KPIs!AA30 >=100%,1,0) -> 0 | G20: =CONCATENATE(B7," \ ",B2) -> Gastos financieros \ Ingresos | H20: =B7 -> Gastos financieros | I20: =D7 -> 6360809688 | K20: Emisiones contaminantes | L20: =KPIs!AE30 -> 0.07373883488
A21: =KPIs!B31 -> Eficiencia gestión de residuos | B21: =KPIs!C32 -> Generación de residuos | C21: =KPIs!N32 -> 351877 | D21: =KPIs!H32 -> 337824 | E21: =IF(KPIs!AA32 >=100%,1,0) -> 1 | G21: =CONCATENATE(B7," \ ",B2) -> Gastos financieros \ Ingresos | H21: =B2 -> Ingresos | I21: =D2 -> 11127944125 | K21: Generación de residuos | L21: =KPIs!AE32 -> -0.0399372508
A22: =KPIs!B31 -> Eficiencia gestión de residuos | B22: =KPIs!C33 -> Residuos gestionados | C22: =KPIs!N33 -> 3728.02865 | D22: =KPIs!H33 -> 3348.878631 | E22: =IF(KPIs!AA33 >=100%,1,0) -> 0 | G22: =CONCATENATE(B8," \ ",B2) -> Retribución de los propietarios \ Ingresos | H22: =B8 -> Retribución de los propietarios | I22: =D8 -> 295312500 | K22: Residuos gestionados | L22: =KPIs!AE33 -> -0.1017025497
A23: =KPIs!B31 -> Eficiencia gestión de residuos | B23: =KPIs!C34 -> Residuos reutilizados | C23: =KPIs!N34 -> 4.2 | D23: =KPIs!H34 -> 4 | E23: =IF(KPIs!AA34 >=100%,1,0) -> 0 | G23: =CONCATENATE(B8," \ ",B2) -> Retribución de los propietarios \ Ingresos | H23: =B2 -> Ingresos | I23: =D2 -> 11127944125 | K23: Residuos reutilizados | L23: =KPIs!AE34 -> -0.04761904762
B24: Indicadores | C24: =C17 -> 2011 | D24: 2012 | G24: =CONCATENATE(B9," \ ",B2) -> Impuesto sobre beneficios \ Ingresos | H24: =B9 -> Impuesto sobre beneficios | I24: =D9 -> 88922812.5
A25: =KPIs!B36 -> Capital Humano | B25: =KPIs!C37 -> Empleados | C25: =KPIs!P37 -> 33430 | D25: =KPIs!J37 -> 34576.5625 | E25: =IF(KPIs!AC37 >=100%,1,0) -> 1 | G25: =CONCATENATE(B9," \ ",B2) -> Impuesto sobre beneficios \ Ingresos | H25: =B2 -> Ingresos | I25: =D2 -> 11127944125
A26: =KPIs!B36 -> Capital Humano | B26: =KPIs!C38 -> Diversidad de género de los empleados | C26: =KPIs!P38 -> 17383.6 | D26: =KPIs!J38 -> 17979.8125 | E26: =IF(KPIs!AC38 >=100%,1,0) -> 1 | G26: =CONCATENATE(B10," \ ",B2) -> Contribución económica a la comunidad \ Ingresos | H26: =B10 -> Contribución económica a la comunidad | I26: =D10 -> 18396246.25
A27: =KPIs!B36 -> Capital Humano | B27: =KPIs!C39 -> Puestos de alta dirección | C27: =KPIs!P39 -> 301 | D27: =KPIs!J39 -> 322 | E27: =IF(KPIs!AC39 >100%,1,0) -> 1 | G27: =CONCATENATE(B10," \ ",B2) -> Contribución económica a la comunidad \ Ingresos | H27: =B2 -> Ingresos | I27: =D2 -> 11127944125
A28: =KPIs!B36 -> Capital Humano | B28: =KPIs!C40 -> Diversidad de género en la alta dirección | C28: =KPIs!P40 -> 121 | D28: =KPIs!J40 -> 140 | E28: =IF(KPIs!AC40 >=100%,1,0) -> 1 | G28: =CONCATENATE(B12," \ ",B2) -> Inversión I+D+i \ Ingresos | H28: =B12 -> Inversión I+D+i | I28: =D12 -> 1350234543
A29: =KPIs!B36 -> Capital Humano | B29: =KPIs!C41 -> Estabilidad laboral | C29: =KPIs!N41 -> 33430.29197 | D29: =KPIs!H41 -> 32111.25359 | E29: =IF(KPIs!AA41 >=100%,1,0) -> 0 | G29: =CONCATENATE(B12," \ ",B2) -> Inversión I+D+i \ Ingresos | H29: =B2 -> Ingresos | I29: =D2 -> 11127944125
A30: =KPIs!B36 -> Capital Humano | B30: =KPIs!C42 -> Absentismo | C30: =KPIs!N42 -> 1532 | D30: =KPIs!H42 -> 1510 | E30: =IF(KPIs!AA42 >=100%,1,0) -> 1 | G30: =CONCATENATE(B13," \ ",B2) -> Inversión total \ Ingresos | H30: =B13 -> Inversión total | I30: =D13 -> 2069170625
A31: =KPIs!B36 -> Capital Humano | B31: =KPIs!C43 -> Rotación de empleados | C31: =KPIs!N43 -> 2527.308 | D31: =KPIs!H43 -> 3267.485156 | E31: =IF(KPIs!AA43 >=100%,1,0) -> 0 | G31: =CONCATENATE(B13," \ ",B2) -> Inversión total \ Ingresos | H31: =B2 -> Ingresos | I31: =D2 -> 11127944125
A32: =KPIs!B36 -> Capital Humano | B32: =KPIs!C44 -> Creación neta de empleo | C32: =KPIs!N44 -> 1061.5625 | D32: =KPIs!H44 -> 1146.5625 | E32: =IF(KPIs!AA44 >=100%,1,0) -> 0 | G32: Compuesto | H32: Indicadores | I32: 2012 | J32: Compuesto | K32: Indicador | L32: 2011-2012
A33: =KPIs!B36 -> Capital Humano | B33: =KPIs!C45 -> Antigüedad laboral | C33: =KPIs!P45 -> 7.4 | D33: =KPIs!J45 -> 7.5 | E33: =IF(KPIs!AC45 >=100%,1,0) -> 0 | G33: =CONCATENATE(B19," \ ",B18) -> Consumo de agua \ Consumo de energía | H33: =B19 -> Consumo de agua | I33: =D19 -> 3870019 | J33: Consumo de agua \ Consumo de energía | K33: Consumo de agua | L33: =(KPIs!K29-KPIs!Q29)/KPIs!Q29 -> -0.01980185227
A34: =KPIs!B36 -> Capital Humano | B34: =KPIs!C46 -> Formación de empleados | C34: =KPIs!N46 -> 1437490 | D34: =KPIs!H46 -> 1659675 | E34: =IF(KPIs!AA46 >=100%,1,0) -> 1 | G34: =CONCATENATE(B19," \ ",B18) -> Consumo de agua \ Consumo de energía | H34: =B18 -> Consumo de energía | I34: =D18 -> 2591236.4 | J34: Emisiones contaminantes \ Consumo de energía | K34: Emisiones contaminantes | L34: =(KPIs!K30-KPIs!Q30)/KPIs!Q30 -> 0.1577375799
A35: =KPIs!B47 -> Capital Social | B35: =KPIs!C48 -> Regulación acerca de clientes | C35: =KPIs!P48 -> 0 | D35: =KPIs!J48 -> 0 | E35: =IF(KPIs!AC48 >=100%,1,0) ->  | G35: =CONCATENATE(B20," \ ",B18) -> Emisiones contaminantes \ Consumo de energía | H35: =B20 -> Emisiones contaminantes | I35: =D20 -> 377824 | J35: Generación de residuos \ Consumo de energía | K35: Generación de residuos | L35: =(KPIs!K32-KPIs!Q32)/KPIs!Q32 -> 0.03516859754
A36: =KPIs!B47 -> Capital Social | B36: =KPIs!C49 -> Pago a proveedores | C36: =KPIs!N49 -> 35 | D36: =KPIs!H49 -> 38 | E36: =IF(KPIs!AA49 >=100%,1,0) -> 1 | G36: =CONCATENATE(B20," \ ",B18) -> Emisiones contaminantes \ Consumo de energía | H36: =B18 -> Consumo de energía | I36: =D18 -> 2591236.4 | J36: Residuos gestionados \ Consumo de energía | K36: Residuos gestionados | L36: =(KPIs!K33-KPIs!Q33)/KPIs!Q33 -> -0.03142860963
B37: Indicadores | C37: =C17 -> 2011 | D37: 2012 | G37: =CONCATENATE(B21," \ ",B18) -> Generación de residuos \ Consumo de energía | H37: =B21 -> Generación de residuos | I37: =D21 -> 337824 | J37: Residuos reutilizados \ Consumo de energía | K37: Residuos reutilizados | L37: =(KPIs!K34-KPIs!Q34)/KPIs!Q34 -> 0.02688585264
A38: =KPIs!B51 -> Buen Gobierno Corporativo | B38: =KPIs!C52 -> Consejeros | C38: =KPIs!P52 -> 12 | D38: =KPIs!J52 -> 13 | E38: =IF(KPIs!AC52 >=100%,1,0) -> 1 | G38: =CONCATENATE(B21," \ ",B18) -> Generación de residuos \ Consumo de energía | H38: =B18 -> Consumo de energía | I38: =D18 -> 2591236.4
A39: =KPIs!B51 -> Buen Gobierno Corporativo | B39: =KPIs!C53 -> Consejeros independientes | C39: =KPIs!P53 -> 9 | D39: =KPIs!J53 -> 10 | E39: =IF(KPIs!AC53 >=100%,1,0) -> 1 | G39: =CONCATENATE(B22," \ ",B18) -> Residuos gestionados \ Consumo de energía | H39: =B22 -> Residuos gestionados | I39: =D22 -> 3348.878631 | K39: Indicadores | L39: Tasa de cambio
A40: =KPIs!B51 -> Buen Gobierno Corporativo | B40: =KPIs!C54 -> Consejeros en material de Responsabilidad Social Corporativa (RSC) | C40: =KPIs!P54 -> 0 | D40: =KPIs!J54 -> 0 | E40: =IF(KPIs!AC54 >=100%,1,0) ->  | G40: =CONCATENATE(B22," \ ",B18) -> Residuos gestionados \ Consumo de energía | H40: =B18 -> Consumo de energía | I40: =D18 -> 2591236.4 | K40: Empleados | L40: =KPIs!AG37 -> 0.0342974125
A41: =KPIs!B51 -> Buen Gobierno Corporativo | B41: =KPIs!C55 -> Comisión ejecutiva | C41: =KPIs!P55 -> 5 | D41: =KPIs!J55 -> 6 | E41: =IF(KPIs!AC55 >=100%,1,0) -> 1 | G41: =CONCATENATE(B23," \ ",B18) -> Residuos reutilizados \ Consumo de energía | H41: =B23 -> Residuos reutilizados | I41: =D23 -> 4 | K41: Diversidad de género de los empleados | L41: =KPIs!AG38 -> 0.0342974125
A42: =KPIs!B51 -> Buen Gobierno Corporativo | B42: =KPIs!C56 -> Comité de auditoría | C42: =KPIs!P56 -> 5 | D42: =KPIs!J56 -> 5 | E42: =IF(KPIs!AC56 >=100%,1,0) -> 1 | G42: =CONCATENATE(B23," \ ",B18) -> Residuos reutilizados \ Consumo de energía | H42: =B18 -> Consumo de energía | I42: =D18 -> 2591236.4 | K42: Puestos de alta dirección | L42: =KPIs!AG39 -> 0.06976744186
A43: =KPIs!B51 -> Buen Gobierno Corporativo | B43: =KPIs!C57 -> Comisión de nombramientos | C43: =KPIs!P57 -> 4 | D43: =KPIs!J57 -> 5 | E43: =IF(KPIs!AC57 >=100%,1,0) -> 1 | G43: Compuesto | H43: Indicadores | I43: 2012 | K43: Diversidad de género en la alta dirección | L43: =KPIs!AG40 -> 0.1570247934
A44: =KPIs!B51 -> Buen Gobierno Corporativo | B44: =KPIs!C58 -> Reuniones del consejo | C44: =KPIs!N58 -> 14 | D44: =KPIs!H58 -> 12 | E44: =IF(KPIs!AA58 >=100%,1,0) -> 0 | G44: =CONCATENATE(B26," \ ",B25) -> Diversidad de género de los empleados \ Empleados | H44: =B26 -> Diversidad de género de los empleados | I44: =D26 -> 17979.8125 | K44: Estabilidad laboral | L44: =KPIs!AE41 -> -0.03945638214
A45: =KPIs!B51 -> Buen Gobierno Corporativo | B45: =KPIs!C59 -> Remuneración total del Consejo | C45: =KPIs!N59 -> 4059062.5 | D45: =KPIs!H59 -> 4042812.5 | E45: =IF(KPIs!AA59 >=100%,1,0) -> 0 | G45: =CONCATENATE(B26," \ ",B25) -> Diversidad de género de los empleados \ Empleados | H45: =B25 -> Empleados | I45: =D25 -> 34576.5625 | K45: Absentismo | L45: =KPIs!AE42 -> -0.01436031332
A46: =KPIs!B51 -> Buen Gobierno Corporativo | B46: =KPIs!C60 -> Diversidad de género en el Consejo | C46: =KPIs!P60 -> 1 | D46: =KPIs!J60 -> 1 | E46: =IF(KPIs!AC60 >=100%,1,0) -> 1 | G46: =CONCATENATE(B27," \ ",B25) -> Puestos de alta dirección \ Empleados | H46: =B27 -> Puestos de alta dirección | I46: =D27 -> 322 | K46: Rotación de empleados | L46: =KPIs!AE43 -> 0.2928717656
G47: =CONCATENATE(B27," \ ",B25) -> Puestos de alta dirección \ Empleados | H47: =B25 -> Empleados | I47: =D25 -> 34576.5625 | K47: Creación neta de empleo | L47: =KPIs!AE44 -> 0.08007065057
G48: =CONCATENATE(B28," \ ",B25) -> Diversidad de género en la alta dirección \ Empleados | H48: =B28 -> Diversidad de género en la alta dirección | I48: =D28 -> 140 | K48: Antigüedad laboral | L48: =KPIs!AG45 -> 0.01351351351
G49: =CONCATENATE(B28," \ ",B25) -> Diversidad de género en la alta dirección \ Empleados | H49: =B25 -> Empleados | I49: =D25 -> 34576.5625 | K49: Formación de empleados | L49: =KPIs!AE46 -> 0.1545645535
G50: =CONCATENATE(B29," \ ",B25) -> Estabilidad laboral \ Empleados | H50: =B29 -> Estabilidad laboral | I50: =D29 -> 32111.25359 | K50: Regulación acerca de clientes | L50: =KPIs!AE48 -> 0
G51: =CONCATENATE(B29," \ ",B25) -> Estabilidad laboral \ Empleados | H51: =B25 -> Empleados | I51: =D25 -> 34576.5625 | K51: Pago a proveedores | L51: =KPIs!AE49 -> 0.08571428571
G52: =CONCATENATE(B31," \ ",B25) -> Rotación de empleados \ Empleados | H52: =B31 -> Rotación de empleados | I52: =D31 -> 3267.485156
G53: =CONCATENATE(B31," \ ",B25) -> Rotación de empleados \ Empleados | H53: =B25 -> Empleados | I53: =D25 -> 34576.5625
G54: =CONCATENATE(B32," \ ",B25) -> Creación neta de empleo \ Empleados | H54: =B32 -> Creación neta de empleo | I54: =D32 -> 1146.5625
G55: =CONCATENATE(B32," \ ",B25) -> Creación neta de empleo \ Empleados | H55: =B25 -> Empleados | I55: =D25 -> 34576.5625
G56: Compuesto | H56: Indicadores | I56: 2012
G57: =CONCATENATE(B39," \ ",B38) -> Consejeros independientes \ Consejeros | H57: =B39 -> Consejeros independientes | I57: =D39 -> 10
G58: =CONCATENATE(B39," \ ",B38) -> Consejeros independientes \ Consejeros | H58: =B38 -> Consejeros | I58: =D38 -> 13
G59: =CONCATENATE(B40," \ ",B38) -> Consejeros en material de Responsabilidad Social Corporativa (RSC) \ Consejeros | H59: =B40 -> Consejeros en material de Responsabilidad Social Corporativa (RSC) | I59: =D40 -> 0
G60: =CONCATENATE(B40," \ ",B38) -> Consejeros en material de Responsabilidad Social Corporativa (RSC) \ Consejeros | H60: =B38 -> Consejeros | I60: =D38 -> 13
G61: =CONCATENATE(B41," \ ",B38) -> Comisión ejecutiva \ Consejeros | H61: =B41 -> Comisión ejecutiva | I61: =D41 -> 6
G62: =CONCATENATE(B41," \ ",B38) -> Comisión ejecutiva \ Consejeros | H62: =B38 -> Consejeros | I62: =D38 -> 13
G63: =CONCATENATE(B42," \ ",B38) -> Comité de auditoría \ Consejeros | H63: =B42 -> Comité de auditoría | I63: =D42 -> 5
G64: =CONCATENATE(B42," \ ",B38) -> Comité de auditoría \ Consejeros | H64: =B38 -> Consejeros | I64: =D38 -> 13
G65: =CONCATENATE(B43," \ ",B38) -> Comisión de nombramientos \ Consejeros | H65: =B43 -> Comisión de nombramientos | I65: =D43 -> 5
G66: =CONCATENATE(B43," \ ",B38) -> Comisión de nombramientos \ Consejeros | H66: =B38 -> Consejeros | I66: =D38 -> 13
G67: =CONCATENATE(B46," \ ",B38) -> Diversidad de género en el Consejo \ Consejeros | H67: =B46 -> Diversidad de género en el Consejo | I67: =D46 -> 1
G68: =CONCATENATE(B46," \ ",B38) -> Diversidad de género en el Consejo \ Consejeros | H68: =B38 -> Consejeros | I68: =D38 -> 13
G72: Complejos | H72: Indicadores | I72: € | J72: Complejos | K72: Indicador | L72: 2011-2012
G73: =CONCATENATE(B2," \ ",B25) -> Ingresos \ Empleados | H73: =B2 -> Ingresos | I73: =D2 -> 11127944125 | J73: Ingresos \ Empleados | K73: Ingresos | L73: =(KPIs!L11-KPIs!R11)/KPIs!R11 -> 0.0599203687
G74: =CONCATENATE(B2," \ ",B25) -> Ingresos \ Empleados | H74: =B25 -> Empleados | I74: =D25 -> 34576.5625 | J74: Remuneración a los empleados \ Empleados | K74: Remuneración a los empleados | L74: =(KPIs!L14-KPIs!R14)/KPIs!R14 -> 0.06655044731
G75: =CONCATENATE(B5," \ ",B25) -> Remuneración a los empleados \ Empleados | H75: =B5 -> Remuneración a los empleados | I75: =D5 -> 1659676875 | J75: Consumo de energía \ Ingresos | K75: Consumo de energía | L75: =(KPIs!L28-KPIs!R28)/KPIs!R28 -> -0.1540009918
G76: =CONCATENATE(B5," \ ",B25) -> Remuneración a los empleados \ Empleados | H76: =B25 -> Empleados | I76: =D25 -> 34576.5625 | J76: Emisiones contaminantes \ Ingresos | K76: Emisiones contaminantes | L76: =(KPIs!L30-KPIs!R30)/KPIs!R30 -> -0.0205551556
G77: =CONCATENATE(B18," \ ",B2) -> Consumo de energía \ Ingresos | H77: =B18 -> Consumo de energía | I77: =D18 -> 2591236.4 | J77: Creación neta de empleo \ Ingresos | K77: Creación neta de empleo | L77: =(KPIs!L44-KPIs!R44)/KPIs!R44 -> -0.01477938961
G78: =CONCATENATE(B18," \ ",B2) -> Consumo de energía \ Ingresos | H78: =B2 -> Ingresos | I78: =D2 -> 11127944125 | J78: Remuneración total del Consejo \ Beneficio bruto | K78: Remuneración total del Consejo | L78: =(KPIs!L59-KPIs!R59)/KPIs!R59 -> -0.08781211714
G79: =CONCATENATE(B20," \ ",B2) -> Emisiones contaminantes \ Ingresos | H79: =B20 -> Emisiones contaminantes | I79: =D20 -> 377824
G80: =CONCATENATE(B20," \ ",B2) -> Emisiones contaminantes \ Ingresos | H80: =B2 -> Ingresos | I80: =D2 -> 11127944125
G81: =CONCATENATE(B32," \ ",B2) -> Creación neta de empleo \ Ingresos | H81: =B32 -> Creación neta de empleo | I81: =D32 -> 1146.5625
G82: =CONCATENATE(B32," \ ",B2) -> Creación neta de empleo \ Ingresos | H82: =B2 -> Ingresos | I82: =D2 -> 11127944125
G83: =CONCATENATE(B45," \ ",B6) -> Remuneración total del Consejo \ Beneficio bruto | H83: =B45 -> Remuneración total del Consejo | I83: =D45 -> 4042812.5
G84: =CONCATENATE(B45," \ ",B6) -> Remuneración total del Consejo \ Beneficio bruto | H84: =B6 -> Beneficio bruto | I84: =D6 -> 8283087875

Sheet F
B31: Column Labels
A32: Values | B32: Ingresos | C32: Inversión total | D32: Remuneración a los empleados | E32: Grand Total
A33: Periodo 2011 | B33: 10150706250 | C33: 2211820938 | D33: 1504515625 | E33: 1.386704281e+10
A34: Periodo 2012 | B34: 11127944125 | C34: 2069170625 | D34: 1659676875 | E34: 14856791625

Sheet E
B37: Column Labels
B38: Consumo de agua | C38: Consumo de energía | D38: Emisiones contaminantes | E38: Generación de residuos | F38: Residuos gestionados | G38: Residuos reutilizados | H38: Grand Total
A39: Tasa de cambio | B39: -0.09091936259 | C39: -0.07255421824 | D39: 0.07373883488 | E39: -0.0399372508 | F39: -0.1017025497 | G39: -0.04761904762 | H39: -0.278993594

Sheet S
B38: Column Labels
B39: Absentismo | C39: Antigüedad laboral | D39: Creación neta de empleo | E39: Diversidad de género de los empleados | F39: Diversidad de género en la alta dirección | G39: Empleados | H39: Estabilidad laboral | I39: Formación de empleados | J39: Pago a proveedores | K39: Puestos de alta dirección | L39: Regulación acerca de clientes | M39: Rotación de empleados | N39: Grand Total
A40: Sum of Tasa de cambio | B40: -0.01436031332 | C40: 0.01351351351 | D40: 0.08007065057 | E40: 0.0342974125 | F40: 0.1570247934 | G40: 0.0342974125 | H40: -0.03945638214 | I40: 0.1545645535 | J40: 0.08571428571 | K40: 0.06976744186 | L40: 0 | M40: 0.2928717656 | N40: 0.8683051337

Sheet G
B30: Column Labels
A31: Values | B31: Comisión de nombramientos | C31: Consejeros | D31: Diversidad de género en el Consejo | E31: Grand Total
A32: Periodo 2012 | B32: 5 | C32: 13 | D32: 1 | E32: 19
A33: Periodo 2011 | B33: 4 | C33: 12 | D33: 1 | E33: 17

Sheet F1
A36: Ejercicio 2012 | B36: Column Labels
A37: Row Labels | B37: Beneficio bruto | C37: Contribución económica a la comunidad | D37: Gastos de proveedores | E37: Gastos financieros | F37: Impuesto sobre beneficios | G37: Ingresos | H37: Inversión I+D+i | I37: Inversión total | J37: Remuneración a los empleados | K37: Retribución de los propietarios | L37: Valor Añadido | M37: Grand Total
A38: Beneficio bruto \ Ingresos | B38: 8283087875 | G38: 11127944125 | M38: 19411032000
A39: Contribución económica a la comunidad \ Ingresos | C39: 18396246.25 | G39: 11127944125 | M39: 1.114634037e+10
A40: Gastos de proveedores \ Ingresos | D40: 1185179375 | G40: 11127944125 | M40: 12313123500
A41: Gastos financieros \ Ingresos | E41: 6360809688 | G41: 11127944125 | M41: 1.748875381e+10
A42: Impuesto sobre beneficios \ Ingresos | F42: 88922812.5 | G42: 11127944125 | M42: 1.121686694e+10
A43: Inversión I+D+i \ Ingresos | G43: 11127944125 | H43: 1350234543 | M43: 12478178668
A44: Inversión total \ Ingresos | G44: 11127944125 | I44: 2069170625 | M44: 13197114750
A45: Remuneración a los empleados \ Ingresos | G45: 11127944125 | J45: 1659676875 | M45: 12787621000
A46: Retribución de los propietarios \ Ingresos | G46: 11127944125 | K46: 295312500 | M46: 11423256625
A47: Valor Añadido \ Ingresos | G47: 11127944125 | L47: 9942764750 | M47: 21070708875
A48: Grand Total | B48: 8283087875 | C48: 18396246.25 | D48: 1185179375 | E48: 6360809688 | F48: 88922812.5 | G48: 111279441250 | H48: 1350234543 | I48: 2069170625 | J48: 1659676875 | K48: 295312500 | L48: 9942764750 | M48: 1.425329965e+11

Sheet E1
A36: % Variación | B36: Column Labels
A37: Row Labels | B37: Consumo de agua | C37: Emisiones contaminantes | D37: Generación de residuos | E37: Residuos gestionados | F37: Residuos reutilizados | G37: Grand Total
A38: Consumo de agua \ Consumo de energía | B38: -0.01980185227 | G38: -0.01980185227
A39: Emisiones contaminantes \ Consumo de energía | C39: 0.1577375799 | G39: 0.1577375799
A40: Generación de residuos \ Consumo de energía | D40: 0.03516859754 | G40: 0.03516859754
A41: Residuos gestionados \ Consumo de energía | E41: -0.03142860963 | G41: -0.03142860963
A42: Residuos reutilizados \ Consumo de energía | F42: 0.02688585264 | G42: 0.02688585264
A43: Grand Total | B43: -0.01980185227 | C43: 0.1577375799 | D43: 0.03516859754 | E43: -0.03142860963 | F43: 0.02688585264 | G43: 0.1685615682

Sheet S1
A33: Ejercicio 2012 | B33: Column Labels
A34: Row Labels | B34: Creación neta de empleo | C34: Diversidad de género de los empleados | D34: Diversidad de género en la alta dirección | E34: Empleados | F34: Estabilidad laboral | G34: Puestos de alta dirección | H34: Rotación de empleados | I34: Grand Total
A35: Creación neta de empleo \ Empleados | B35: 1146.5625 | E35: 34576.5625 | I35: 35723.125
A36: Diversidad de género de los empleados \ Empleados | C36: 17979.8125 | E36: 34576.5625 | I36: 52556.375
A37: Diversidad de género en la alta dirección \ Empleados | D37: 140 | E37: 34576.5625 | I37: 34716.5625
A38: Estabilidad laboral \ Empleados | E38: 34576.5625 | F38: 32111.25359 | I38: 66687.81609
A39: Puestos de alta dirección \ Empleados | E39: 34576.5625 | G39: 322 | I39: 34898.5625
A40: Rotación de empleados \ Empleados | E40: 34576.5625 | H40: 3267.485156 | I40: 37844.04766
A41: Grand Total | B41: 1146.5625 | C41: 17979.8125 | D41: 140 | E41: 207459.375 | F41: 32111.25359 | G41: 322 | H41: 3267.485156 | I41: 262426.4888

Sheet G1
A36: ejercicio 2012 | B36: Column Labels
A37: Row Labels | B37: Comisión de nombramientos | C37: Comisión ejecutiva | D37: Comité de auditoría | E37: Consejeros | F37: Consejeros en material de Responsabilidad Social Corporativa (RSC) | G37: Consejeros independientes | H37: Diversidad de género en el Consejo | I37: Grand Total
A38: Comisión de nombramientos \ Consejeros | B38: 5 | E38: 13 | I38: 18
A39: Comisión ejecutiva \ Consejeros | C39: 6 | E39: 13 | I39: 19
A40: Comité de auditoría \ Consejeros | D40: 5 | E40: 13 | I40: 18
A41: Consejeros en material de Responsabilidad Social Corporativa (RSC) \ Consejeros | E41: 13 | F41: 0 | I41: 13
A42: Consejeros independientes \ Consejeros | E42: 13 | G42: 10 | I42: 23
A43: Diversidad de género en el Consejo \ Consejeros | E43: 13 | H43: 1 | I43: 14
A44: Grand Total | B44: 5 | C44: 6 | D44: 5 | E44: 78 | F44: 0 | G44: 10 | H44: 1 | I44: 105

Sheet Complejos
A38: %Variación | B38: Column Labels
A39: Row Labels | B39: Consumo de energía | C39: Creación neta de empleo | D39: Emisiones contaminantes | E39: Ingresos | F39: Remuneración a los empleados | G39: Remuneración total del Consejo | H39: Grand Total
A40: Consumo de energía \ Ingresos | B40: -0.1540009918 | H40: -0.1540009918
A41: Creación neta de empleo \ Ingresos | C41: -0.01477938961 | H41: -0.01477938961
A42: Emisiones contaminantes \ Ingresos | D42: -0.0205551556 | H42: -0.0205551556
A43: Ingresos \ Empleados | E43: 0.0599203687 | H43: 0.0599203687
A44: Remuneración a los empleados \ Empleados | F44: 0.06655044731 | H44: 0.06655044731
A45: Remuneración total del Consejo \ Beneficio bruto | G45: -0.08781211714 | H45: -0.08781211714
A46: Grand Total | B46: -0.1540009918 | C46: -0.01477938961 | D46: -0.0205551556 | E46: 0.0599203687 | F46: 0.06655044731 | G46: -0.08781211714 | H46: -0.1506768381
